bitfinex-derivatives/quotes_BNBF0:USTF0_20250908
["timestamp","ask_amount","ask_price","bid_price","bid_amount"]
[1757303949087,0.61748469,879.48,879.16,1.21]
[1757303949287,0.61748469,879.47,879.16,1.21]
[1757303949490,0.61748469,879.46,879.16,1.21]
[1757303949790,0.61748469,879.45,879.16,1.21]
[1757303949988,0.61748469,879.44,879.16,1.21]
[1757303950193,0.61748469,879.43,879.16,1.21]
[1757303950391,0.61748469,879.42,879.16,1.21]
[1757303950691,0.61748469,879.41,879.16,1.21]
[1757303950891,0.61748469,879.4,879.16,1.21]
[1757303951191,0.61748469,879.39,879.16,1.21]
[1757303951389,1.0137301,879.37,879.16,1.21]
[1757303951592,0.61748469,879.36,879.16,1.21]
[1757303951790,0.61748469,879.35,879.16,1.21]
[1757303952093,0.55573623,879.34,879.16,1.21]
[1757303952292,1.0137301,879.37,879.16,1.21]
[1757303952690,1.0137301,879.36,879.16,1.21]
[1757303955998,1.0137301,879.34,879.16,1.21]
[1757303957999,0.9123571,879.34,879.16,1.21]
[1757303958705,1.52016474,879.43,879.16,1.21]
[1757303959896,1.52016474,879.47,879.16,1.21]
[1757303960399,1.52016474,879.45,879.16,1.21]
[1757303960600,1.52016474,879.46,879.16,1.21]
[1757303961298,1.52016474,879.49,879.16,1.21]
[1757303962298,1.52016474,879.5,879.16,1.21]
[1757303963897,0.61892081,879.49,879.16,1.21]
[1757303964101,1.36814827,879.5,879.16,1.21]
[1757303964901,3.55821566,880.48,879.18,0.19752806]
[1757303965098,2.54158261,881.27,879.18,0.19752806]
[1757303965602,2.54158261,881.4,879.18,0.19752806]
[1757303966098,2.54158261,881.42,879.18,0.19752806]
[1757303966501,0.19739585,881.19,879.18,0.19752806]
[1757303969398,0.61810971,881.18,879.18,0.19752806]
[1757303969602,0.61810971,881.17,879.18,0.19752806]
[1757303969802,0.61810971,881.16,879.18,0.19752806]
[1757303969999,0.61810971,881.15,879.18,0.19752806]
[1757303970201,0.61810971,881.14,879.18,0.19752806]
[1757303970400,0.61810971,881.13,879.18,0.19752806]
[1757303970605,0.61810971,881.12,879.18,0.19752806]
[1757303970901,0.61810971,881.11,879.18,0.19752806]
[1757303971206,0.61810971,881.1,879.18,0.19752806]
[1757303971401,0.61810971,881.09,879.18,0.19752806]
[1757303971704,0.61810971,881.08,879.18,0.19752806]
[1757303971903,0.61810971,881.07,879.18,0.19752806]
[1757303972099,0.61810971,881.06,879.18,0.19752806]
[1757303972301,0.61810971,881.05,879.18,0.19752806]
[1757303972504,0.61810971,881.04,879.18,0.19752806]
[1757303972701,0.61810971,881.03,879.18,0.19752806]
[1757303973000,0.61810971,881.02,879.18,0.19752806]
[1757303973206,0.61810971,881.01,879.18,0.19752806]
[1757303973407,0.61810971,881.0,879.18,0.19752806]
[1757303973703,0.61810971,880.99,879.18,0.19752806]
[1757303974006,0.61810971,880.98,879.18,0.19752806]
[1757303974206,0.61810971,880.97,879.18,0.19752806]
[1757303974407,0.61810971,880.96,879.18,0.19752806]
[1757303974605,0.61810971,880.95,879.18,0.19752806]
[1757303974807,0.61810971,880.94,879.18,0.19752806]
[1757303975005,0.61810971,880.93,879.18,0.19752806]
[1757303975205,0.61810971,880.92,879.18,0.19752806]
[1757303975407,2.54158261,880.82,879.18,0.19752806]
[1757303975608,0.61810971,880.81,879.18,0.19752806]
[1757303975908,0.61810971,880.8,879.18,0.19752806]
[1757303976204,0.61810971,880.79,879.18,0.19752806]
[1757303976405,0.61810971,880.78,879.18,0.19752806]
[1757303976604,0.61810971,880.77,879.18,0.19752806]
[1757303976802,0.61810971,880.76,879.18,0.19752806]
[1757303977008,0.61810971,880.75,879.18,0.19752806]
[1757303977205,0.61810971,880.74,879.18,0.19752806]
[1757303977405,0.61810971,880.73,879.18,0.19752806]
[1757303977605,0.19739585,881.19,879.18,0.19752806]
[1757303977606,0.61810971,880.72,879.18,0.19752806]
[1757303977808,0.61810971,880.71,879.18,0.19752806]
[1757303978106,0.61810971,880.7,879.18,0.19752806]
[1757303978408,0.61810971,880.69,879.18,0.19752806]
[1757303978608,0.61810971,880.68,879.18,0.19752806]
[1757303978810,0.61810971,880.67,879.18,0.19752806]
[1757303979105,0.61810971,880.66,879.18,0.19752806]
[1757303979305,0.61810971,880.65,879.18,0.19752806]
[1757303979509,0.61810971,880.64,879.18,0.19752806]
[1757303979805,0.61810971,880.63,879.18,0.19752806]
[1757303980005,0.61810971,880.62,879.18,0.19752806]
[1757303980207,0.61810971,880.61,879.18,0.19752806]
[1757303980403,0.61810971,880.6,879.18,0.19752806]
[1757303980609,0.61810971,880.59,879.18,0.19752806]
[1757303980806,0.61810971,880.58,879.18,0.19752806]
[1757303981010,0.61810971,880.57,879.18,0.19752806]
[1757303981310,2.54158261,880.81,879.18,0.19752806]
[1757303981311,0.61810971,880.56,879.18,0.19752806]
[1757303981509,0.61810971,880.55,879.18,0.19752806]
[1757303981706,0.61810971,880.54,879.18,0.19752806]
[1757303982010,0.61810971,880.53,879.18,0.19752806]
[1757303982207,0.61810971,880.52,879.18,0.19752806]
[1757303982411,0.61810971,880.51,879.18,0.19752806]
[1757303982610,0.61810971,880.5,879.18,0.19752806]
[1757303982911,0.61810971,880.49,879.18,0.19752806]
[1757303983109,0.61810971,880.48,879.18,0.19752806]
[1757303983308,0.61810971,880.47,879.18,0.19752806]
[1757303983511,0.61810971,880.46,879.18,0.19752806]
[1757303983712,0.61810971,880.45,879.18,0.19752806]
[1757303983913,1.52215777,879.81,879.18,0.19752806]
[1757303984212,0.61810971,879.8,879.18,0.19752806]
[1757303984408,0.61810971,879.79,879.18,0.19752806]
[1757303984612,0.61810971,879.78,879.18,0.19752806]
[1757303984811,0.61810971,879.77,879.18,0.19752806]
[1757303985114,0.61810971,879.76,879.18,0.19752806]
[1757303985311,0.61810971,879.75,879.18,0.19752806]
[1757303985608,0.61810971,879.74,879.18,0.19752806]
[1757303985810,0.61810971,879.73,879.18,0.19752806]
[1757303986008,0.61810971,879.72,879.18,0.19752806]
[1757303986208,0.61810971,879.71,879.18,0.19752806]
[1757303986410,0.61810971,879.7,879.18,0.19752806]
[1757303986613,0.61810971,879.69,879.18,0.19752806]
[1757303986909,0.61810971,879.68,879.18,0.19752806]
[1757303987110,0.61810971,879.67,879.18,0.19752806]
[1757303987412,0.61810971,879.66,879.18,0.19752806]
[1757303987610,0.55629874,879.65,879.18,0.19752806]
[1757303987809,1.52215777,879.8,879.18,0.19752806]
[1757303988010,1.01471224,879.62,879.18,0.19752806]
[1757303991011,1.01471224,879.61,879.18,0.19752806]
[1757303991413,1.01471224,879.85,879.18,0.19752806]
[1757303992114,1.01471224,879.84,879.18,0.19752806]
[1757303993512,0.91324102,879.84,879.18,0.19752806]
[1757303995719,1.52215777,879.98,879.18,0.19752806]
[1757303996019,1.52215777,879.98,879.19,1.341]
[1757303996822,1.52215777,880.04,879.19,1.341]
[1757303998118,1.52215777,880.03,879.19,1.341]
[1757303999018,1.52215777,880.02,879.19,1.341]
[1757303999523,1.52215777,880.2,879.19,1.341]
[1757303999923,1.52215777,880.22,879.19,1.341]
[1757304001225,2.13956873,880.21,879.19,1.341]
[1757304001525,1.52215777,880.04,879.19,1.341]
[1757304001724,0.61741096,880.03,879.19,1.341]
[1757304001922,0.61741096,880.02,879.19,1.341]
[1757304002123,0.61741096,880.01,879.19,1.341]
[1757304002324,0.61741096,880.0,879.19,1.341]
[1757304002625,0.61741096,879.99,879.19,1.341]
[1757304002822,0.61741096,879.98,879.19,1.341]
[1757304003027,0.61741096,879.97,879.19,1.341]
[1757304003325,0.61741096,879.96,879.19,1.341]
[1757304003524,0.61741096,879.95,879.19,1.341]
[1757304003828,0.61741096,879.94,879.19,1.341]
[1757304004025,0.61741096,879.93,879.19,1.341]
[1757304004228,0.61741096,879.92,879.19,1.341]
[1757304004425,0.61741096,879.91,879.19,1.341]
[1757304004628,0.61741096,879.9,879.19,1.341]
[1757304004823,0.61741096,879.89,879.19,1.341]
[1757304005025,0.61741096,879.88,879.19,1.341]
[1757304005325,1.52215777,880.04,879.19,1.341]
[1757304005326,0.61741096,879.87,879.19,1.341]
[1757304005525,0.61741096,879.86,879.19,1.341]
[1757304005728,0.61741096,879.85,879.19,1.341]
[1757304005923,0.61741096,879.84,879.19,1.341]
[1757304006124,0.61741096,879.83,879.19,1.341]
[1757304006426,0.61741096,879.82,879.19,1.341]
[1757304006625,0.61741096,879.81,879.19,1.341]
[1757304006824,0.61741096,879.8,879.19,1.341]
[1757304007129,0.61741096,879.79,879.19,1.341]
[1757304007428,0.61741096,879.78,879.19,1.341]
[1757304007629,0.61741096,879.77,879.19,1.341]
[1757304007829,2.54158261,881.37,879.19,1.341]
[1757304007830,0.61741096,879.76,879.19,1.341]
[1757304008131,0.61741096,879.75,879.19,1.341]
[1757304008329,0.61741096,879.74,879.19,1.341]
[1757304008529,0.61741096,879.73,879.19,1.341]
[1757304008730,0.61741096,879.72,879.19,1.341]
[1757304009027,0.61741096,879.71,879.19,1.341]
[1757304009231,0.61741096,879.7,879.19,1.341]
[1757304009532,0.61741096,879.69,879.19,1.341]
[1757304009727,0.61741096,879.68,879.19,1.341]
[1757304009926,0.61741096,879.67,879.19,1.341]
[1757304010130,0.61741096,879.66,879.18,0.19752806]
[1757304010329,0.61741096,879.65,879.18,0.19752806]
[1757304010531,1.52215777,880.37,879.18,0.19752806]
[1757304010732,1.52215777,880.23,879.18,0.19752806]
[1757304011030,0.61791411,880.22,879.18,0.19752806]
[1757304011228,0.61791411,880.21,879.18,0.19752806]
[1757304011532,0.61791411,880.2,879.18,0.19752806]
[1757304011728,0.61791411,880.19,879.18,0.19752806]
[1757304012031,0.61791411,880.18,879.18,0.19752806]
[1757304012228,0.61791411,880.17,879.18,0.19752806]
[1757304012530,0.61791411,880.16,879.19,1.251]
[1757304012727,0.61791411,880.15,879.19,1.251]
[1757304013032,0.61791411,880.14,879.19,1.251]
[1757304013332,0.61791411,880.13,879.19,1.251]
[1757304013529,0.61791411,880.12,879.19,1.251]
[1757304013832,0.61791411,880.11,879.19,1.251]
[1757304014033,0.61791411,880.1,879.19,1.251]
[1757304014228,0.61791411,880.09,879.19,1.251]
[1757304014430,0.61791411,880.08,879.19,1.251]
[1757304014731,0.61791411,880.07,879.19,1.251]
[1757304014929,0.61791411,880.06,879.19,1.251]
[1757304015129,0.61791411,880.05,879.19,1.251]
[1757304015429,0.61791411,880.04,879.19,1.251]
[1757304015729,0.61791411,880.03,879.19,1.251]
[1757304015932,0.61791411,880.02,879.19,1.251]
[1757304016229,0.61791411,880.01,879.19,1.251]
[1757304016430,0.61791411,880.0,879.19,1.251]
[1757304016730,0.61791411,879.99,879.19,1.251]
[1757304016928,0.61791411,879.98,879.19,1.251]
[1757304017233,0.61791411,879.97,879.19,1.251]
[1757304017430,0.61791411,879.96,879.19,1.251]
[1757304017630,0.61791411,879.95,879.19,1.251]
[1757304017829,0.61791411,879.94,879.19,1.251]
[1757304018028,0.61791411,879.93,879.19,1.251]
[1757304018234,0.61791411,879.92,879.19,1.251]
[1757304018527,0.61791411,879.91,879.19,1.251]
[1757304018734,0.61791411,879.9,879.19,1.251]
[1757304018930,0.61791411,879.89,879.19,1.251]
[1757304019131,0.61791411,879.88,879.19,1.251]
[1757304019335,0.61791411,879.87,879.19,1.251]
[1757304019534,0.61791411,879.86,879.19,1.251]
[1757304019732,0.61791411,879.85,879.19,1.251]
[1757304020035,0.61791411,879.84,879.19,1.251]
[1757304020231,0.61791411,879.83,879.19,1.251]
[1757304020432,2.54158261,880.86,879.19,1.251]
[1757304020433,0.61791411,879.82,879.19,1.251]
[1757304020631,0.61791411,879.81,879.19,1.251]
[1757304020833,0.61791411,879.8,879.19,1.251]
[1757304021032,0.61791411,879.79,879.19,1.251]
[1757304021337,0.61791411,879.78,879.19,1.251]
[1757304021537,0.61791411,879.77,879.19,1.251]
[1757304021733,0.61791411,879.76,879.19,1.251]
[1757304021939,0.61791411,879.75,879.19,1.251]
[1757304022141,0.61791411,879.74,879.19,1.251]
[1757304022341,0.61791411,879.73,879.19,1.251]
[1757304022541,0.61791411,879.72,879.19,1.251]
[1757304022740,0.61791411,879.71,879.19,1.251]
[1757304022939,0.61791411,879.7,879.19,1.251]
[1757304023242,0.61791411,879.69,879.19,1.251]
[1757304023442,0.61791411,879.68,879.19,1.251]
[1757304023638,1.01598115,879.66,879.19,1.251]
[1757304023942,1.01598115,879.57,879.19,1.251]
[1757304024142,0.61791411,879.56,879.19,1.251]
[1757304024342,0.61791411,879.55,879.19,1.251]
[1757304024542,0.61791411,879.54,879.19,1.251]
[1757304024836,1.47050574,879.53,879.19,1.251]
[1757304025043,1.01598115,879.53,879.19,1.251]
[1757304025242,1.01598115,879.54,879.19,1.251]
[1757304025442,1.01598115,879.53,879.19,1.251]
[1757304025643,1.01598115,879.52,879.19,1.251]
[1757304026242,1.01598115,879.53,879.19,1.251]
[1757304027138,1.01598115,879.54,879.19,1.251]
[1757304027342,1.01598115,879.53,879.19,1.251]
[1757304028345,1.01598115,879.51,879.19,1.251]
[1757304028545,1.01598115,879.49,879.19,1.251]
[1757304028840,1.01598115,879.5,879.19,1.251]
[1757304029045,1.01598115,879.56,879.19,1.251]
[1757304029546,1.01598115,879.63,879.19,1.251]
[1757304029739,1.01598115,879.61,879.19,1.251]
[1757304029940,1.01598115,879.62,879.19,1.251]
[1757304030442,1.01598115,879.59,879.19,1.251]
[1757304030644,0.76216726,879.59,879.19,1.251]
[1757304031042,1.52215777,879.74,879.19,1.251]
[1757304031240,1.52215777,879.78,879.19,1.251]
[1757304031547,1.52215777,879.96,879.19,1.251]
[1757304032142,1.52215777,879.94,879.19,1.251]
[1757304032341,1.52215777,880.01,879.19,1.251]
[1757304033346,1.52215777,880.0,879.19,1.251]
[1757304033747,1.52215777,880.15,879.19,1.251]
[1757304033945,1.52215777,880.18,879.19,1.251]
[1757304035251,1.52215777,880.19,879.19,1.251]
[1757304035749,1.52215777,880.2,879.19,1.251]
[1757304035949,1.52215777,880.21,879.19,1.251]
[1757304036650,0.61988524,880.2,879.19,1.251]
[1757304036852,0.61988524,880.19,879.19,1.251]
[1757304037050,0.61988524,880.18,879.19,1.251]
[1757304037254,0.61988524,880.17,879.19,1.251]
[1757304037453,0.61988524,880.16,879.19,1.251]
[1757304037753,0.61988524,880.15,879.19,1.251]
[1757304037953,0.61988524,880.14,879.19,1.251]
[1757304038154,0.61988524,880.13,879.19,1.251]
[1757304038356,0.61988524,880.12,879.19,1.251]
[1757304038555,0.61988524,880.11,879.19,1.251]
[1757304038854,0.61988524,880.1,879.19,1.251]
[1757304039054,0.61988524,880.09,879.19,1.251]
[1757304039252,0.61988524,880.08,879.19,1.251]
[1757304039452,0.61988524,880.07,879.19,1.251]
[1757304039651,0.61988524,880.06,879.19,1.251]
[1757304039854,0.61988524,880.05,879.19,1.251]
[1757304040154,0.61988524,880.04,879.19,1.251]
[1757304040353,0.61988524,880.03,879.19,1.251]
[1757304040554,0.61988524,880.02,879.19,1.251]
[1757304040754,0.61988524,880.01,879.19,1.251]
[1757304040954,1.52215777,880.35,879.19,1.251]
[1757304040955,0.61988524,880.0,879.19,1.251]
[1757304041151,0.61988524,879.99,879.19,1.251]
[1757304041354,0.61988524,879.98,879.19,1.251]
[1757304041652,0.61988524,879.97,879.19,1.251]
[1757304041854,0.61988524,879.96,879.19,1.251]
[1757304042055,0.61988524,879.95,879.19,1.251]
[1757304042255,0.61988524,879.94,879.19,1.251]
[1757304042455,0.61988524,879.93,879.19,1.251]
[1757304042654,0.61988524,879.92,879.19,1.251]
[1757304042857,0.61988524,879.91,879.19,1.251]
[1757304043058,0.61988524,879.9,879.19,1.251]
[1757304043353,0.61988524,879.89,879.19,1.251]
[1757304043558,0.61988524,879.88,879.19,1.251]
[1757304043753,0.61988524,879.87,879.19,1.251]
[1757304043953,0.61988524,879.86,879.19,1.251]
[1757304044155,0.61988524,879.85,879.19,1.251]
[1757304044357,0.61988524,879.84,879.19,1.251]
[1757304044555,0.61988524,879.83,879.19,1.251]
[1757304044855,0.61988524,879.82,879.19,1.251]
[1757304045054,0.61988524,879.81,879.19,1.251]
[1757304045255,0.61988524,879.8,879.19,1.251]
[1757304045456,0.61988524,879.79,879.19,1.251]
[1757304045659,0.61988524,879.78,879.19,1.251]
[1757304045859,0.61988524,879.77,879.19,1.251]
[1757304046059,0.61988524,879.76,879.19,1.251]
[1757304046254,0.61988524,879.75,879.19,1.251]
[1757304046458,0.61988524,879.74,879.19,1.251]
[1757304046654,0.61988524,879.73,879.19,1.251]
[1757304046857,0.61988524,879.72,879.19,1.251]
[1757304047055,0.61988524,879.71,879.19,1.251]
[1757304047257,0.61988524,879.7,879.19,1.251]
[1757304047456,1.52215777,880.17,879.19,1.251]
[1757304047756,0.61914386,880.16,879.19,1.251]
[1757304047960,0.61914386,880.15,879.19,1.251]
[1757304048160,0.61914386,880.14,879.19,1.251]
[1757304048357,0.61914386,880.13,879.19,1.251]
[1757304048559,0.61914386,880.12,879.19,1.251]
[1757304048760,1.52215777,880.16,879.19,1.251]
[1757304048761,0.61914386,880.11,879.19,1.251]
[1757304048962,1.52215777,880.16,879.19,1.251]
[1757304048963,0.61914386,880.1,879.19,1.251]
[1757304049263,1.52215777,880.0,879.19,1.251]
[1757304049559,2.14130163,879.99,879.19,1.251]
[1757304049763,0.61914386,879.98,879.19,1.251]
[1757304050064,1.52215777,879.96,879.19,1.251]
[1757304050262,0.61914386,879.97,879.19,1.251]
[1757304050263,0.61914386,879.95,879.19,1.251]
[1757304050463,0.61914386,879.94,879.19,1.251]
[1757304050664,0.61914386,879.93,879.19,1.251]
[1757304050864,0.61914386,879.92,879.19,1.251]
[1757304051159,0.61914386,879.91,879.19,1.251]
[1757304051360,0.61914386,879.9,879.19,1.251]
[1757304051564,0.61914386,879.89,879.19,1.251]
[1757304051764,0.61914386,879.88,879.19,1.251]
[1757304052061,0.61914386,879.87,879.19,1.251]
[1757304052364,0.61914386,879.86,879.19,1.251]
[1757304052564,0.61914386,879.85,879.19,1.251]
[1757304052765,0.61914386,879.84,879.19,1.251]
[1757304052966,0.55722948,879.83,879.19,1.251]
[1757304053164,1.52215777,880.0,879.19,1.251]
[1757304055170,1.52215777,880.01,879.19,1.251]
[1757304055565,1.52215777,880.01,879.18,0.19752806]
[1757304056366,1.52215777,880.06,879.18,0.19752806]
[1757304056572,1.52215777,880.07,879.18,0.19752806]
[1757304058274,1.52215777,880.07,879.19,0.97]
[1757304060170,1.52215777,880.08,879.19,0.97]
[1757304060370,1.52215777,880.07,879.19,0.97]
[1757304060773,1.0136725,879.89,879.19,0.97]
[1757304061574,1.0136725,879.88,879.19,0.97]
[1757304062176,1.0136725,879.89,879.19,0.97]
[1757304064277,2.54158261,880.79,879.19,0.97]
[1757304064278,1.0136725,879.88,879.19,0.97]
[1757304064879,0.61828703,879.87,879.19,0.97]
[1757304065073,1.0136725,879.83,879.19,0.97]
[1757304065378,0.61828703,879.82,879.19,0.97]
[1757304065673,0.61828703,879.81,879.19,0.97]
[1757304065878,0.61828703,879.8,879.19,0.97]
[1757304066077,0.61828703,879.79,879.19,0.97]
[1757304066278,0.61828703,879.78,879.19,0.97]
[1757304066475,0.61828703,879.77,879.19,0.97]
[1757304066674,1.0136725,879.71,879.19,0.97]
[1757304066978,3.55821566,882.36,879.19,0.97]
[1757304066979,1.0136725,879.63,879.19,0.97]
[1757304067273,1.0136725,879.55,879.19,0.97]
[1757304067473,1.0136725,879.52,879.19,0.97]
[1757304067674,0.61828703,879.51,879.19,0.97]
[1757304067877,0.61828703,879.5,879.19,0.97]
[1757304068078,2.54158261,880.52,879.19,0.97]
[1757304068079,0.61828703,879.49,879.19,0.97]
[1757304068277,0.61828703,879.48,879.19,0.97]
[1757304068477,0.61828703,879.47,879.19,0.97]
[1757304068676,0.61828703,879.46,879.19,0.97]
[1757304068875,0.61828703,879.45,879.19,0.97]
[1757304069078,0.61828703,879.44,879.19,0.97]
[1757304069278,0.61828703,879.43,879.19,0.97]
[1757304069476,0.61828703,879.42,879.19,0.97]
[1757304069674,0.61828703,879.41,879.19,0.97]
[1757304069879,0.61828703,879.4,879.19,0.97]
[1757304070076,0.61828703,879.39,879.19,0.97]
[1757304070279,0.61828703,879.38,879.19,0.97]
[1757304070476,0.61828703,879.37,879.19,0.97]
[1757304070779,0.61828703,879.36,879.19,0.97]
[1757304071079,0.61828703,879.35,879.19,0.97]
[1757304071274,0.61828703,879.34,879.19,0.97]
[1757304071478,0.61828703,879.33,879.19,0.97]
[1757304071675,0.61828703,879.32,879.19,0.97]
[1757304071878,0.61828703,879.31,879.19,0.97]
[1757304072076,0.61828703,879.3,879.19,0.97]
[1757304072277,0.61828703,879.29,879.19,0.97]
[1757304072475,0.61828703,879.28,879.19,0.97]
[1757304072779,0.61828703,879.27,879.19,0.97]
[1757304072977,0.61828703,879.26,879.19,0.97]
[1757304073177,1.0136725,879.54,879.19,0.97]
[1757304073480,0.61948689,879.53,879.19,0.97]
[1757304073680,0.61948689,879.52,879.19,0.97]
[1757304073878,0.61948689,879.51,879.19,0.97]
[1757304074078,0.61948689,879.5,879.19,0.97]
[1757304074281,0.61948689,879.49,879.19,0.97]
[1757304074481,0.61948689,879.48,879.19,0.97]
[1757304074678,0.61948689,879.47,879.19,0.97]
[1757304074879,0.61948689,879.46,879.19,0.97]
[1757304075182,0.61948689,879.45,879.19,0.97]
[1757304075380,0.61948689,879.44,879.19,0.97]
[1757304075579,1.0136725,879.54,879.19,0.97]
[1757304075580,0.61948689,879.43,879.19,0.97]
[1757304075783,0.61948689,879.42,879.19,0.97]
[1757304075980,0.61948689,879.41,879.19,0.97]
[1757304076182,1.0136725,879.61,879.19,0.97]
[1757304076183,0.61948689,879.4,879.19,0.97]
[1757304076380,0.61948689,879.39,879.19,0.97]
[1757304076582,0.61948689,879.38,879.19,0.97]
[1757304076780,0.61948689,879.37,879.19,0.97]
[1757304076984,0.61948689,879.36,879.19,0.97]
[1757304077181,0.61948689,879.35,879.19,0.97]
[1757304077484,0.61948689,879.34,879.19,0.97]
[1757304077684,0.61948689,879.33,879.19,0.97]
[1757304077880,0.61948689,879.32,879.19,0.97]
[1757304078180,0.61948689,879.31,879.19,0.97]
[1757304078381,0.61948689,879.3,879.19,0.97]
[1757304078584,0.61948689,879.29,879.19,0.97]
[1757304078885,0.61948689,879.28,879.19,0.97]
[1757304079188,0.61948689,879.27,879.19,0.97]
[1757304079385,0.61948689,879.26,879.19,0.97]
[1757304079585,0.61948689,879.25,879.19,0.97]
[1757304079782,0.61948689,879.24,879.19,0.97]
[1757304079987,0.61948689,879.23,879.19,0.97]
[1757304080283,0.61948689,879.22,879.19,0.97]
[1757304080486,0.61948689,879.21,879.19,0.97]
[1757304080687,0.61948689,879.2,879.19,0.97]
[1757304099697,0.61465478,879.2,879.19,0.97]
[1757304101393,0.61465478,879.2,879.18,0.19752806]
[1757304101594,0.61465478,879.19,879.18,0.19752806]
[1757304101792,0.61465478,879.19,876.5,1.51817796]
[1757304101993,1.00343495,879.12,876.52,1.51817796]
[1757304102193,0.61465478,879.11,876.49,1.51817796]
[1757304102392,1.00343495,879.09,876.46,1.51817796]
[1757304102593,0.61465478,879.08,876.46,1.51817796]
[1757304102795,0.61465478,879.07,876.48,1.51817796]
[1757304102997,0.61465478,879.06,876.48,1.51817796]
[1757304103213,0.61465478,879.05,876.46,1.51817796]
[1757304103393,0.61465478,879.04,876.47,1.51817796]
[1757304103694,0.61465478,879.03,876.46,1.51817796]
[1757304103996,0.61465478,879.02,876.51,1.51817796]
[1757304104196,0.61465478,879.01,876.51,1.51817796]
[1757304104396,0.61465478,879.0,876.49,1.51817796]
[1757304104596,0.61465478,878.99,876.52,1.189]
[1757304104893,0.61465478,878.98,876.52,1.189]
[1757304105093,0.61465478,878.97,877.13,0.1977992]
[1757304105291,0.61465478,878.96,877.13,0.1977992]
[1757304105495,0.61465478,878.95,877.13,0.1977992]
[1757304105694,0.61465478,878.94,877.13,0.1977992]
[1757304105994,0.61465478,878.93,877.13,0.1977992]
[1757304106198,0.61465478,878.92,877.13,0.1977992]
[1757304106396,0.61465478,878.91,877.13,0.1977992]
[1757304106596,0.61465478,878.9,877.13,0.1977992]
[1757304106801,0.61465478,878.89,877.13,0.1977992]
[1757304106999,0.61465478,878.88,877.13,0.1977992]
[1757304107300,0.61465478,878.87,877.13,0.1977992]
[1757304107498,0.61465478,878.86,877.13,0.1977992]
[1757304107702,0.61465478,878.85,877.13,0.1977992]
[1757304107902,0.61465478,878.84,877.13,0.1977992]
[1757304108227,0.61465478,878.83,877.13,0.1977992]
[1757304108523,0.61465478,878.82,877.13,0.1977992]
[1757304108721,1.00343495,878.95,877.13,0.1977992]
[1757304108722,0.61465478,878.81,877.13,0.1977992]
[1757304108921,0.61465478,878.8,877.13,0.1977992]
[1757304109127,0.61465478,878.79,877.13,0.1977992]
[1757304109324,0.61465478,878.78,877.13,0.1977992]
[1757304109526,0.61465478,878.77,877.13,0.1977992]
[1757304109725,0.61465478,878.76,877.13,0.1977992]
[1757304109925,0.61465478,878.75,877.13,0.1977992]
[1757304110124,0.61465478,878.74,877.13,0.1977992]
[1757304110324,0.61465478,878.73,877.13,0.1977992]
[1757304110529,0.61465478,878.72,877.13,0.1977992]
[1757304110826,0.61465478,878.71,877.13,0.1977992]
[1757304111025,0.61465478,878.7,877.13,0.1977992]
[1757304111325,0.61465478,878.69,877.13,0.1977992]
[1757304111523,0.61465478,878.68,877.13,0.1977992]
[1757304111726,0.61465478,878.67,877.13,0.1977992]
[1757304111929,0.61465478,878.66,877.13,0.1977992]
[1757304112128,0.61465478,878.65,877.13,0.1977992]
[1757304112331,0.61465478,878.64,877.13,0.1977992]
[1757304112632,0.61465478,878.63,877.13,0.1977992]
[1757304112928,0.61465478,878.62,877.13,0.1977992]
[1757304113129,0.61465478,878.61,877.13,0.1977992]
[1757304113329,1.00343495,879.1,877.13,0.1977992]
[1757304113531,0.61178777,879.09,877.13,0.1977992]
[1757304113729,0.61178777,879.08,877.13,0.1977992]
[1757304113929,0.61178777,879.07,877.13,0.1977992]
[1757304114130,0.61178777,879.06,877.13,0.1977992]
[1757304114328,0.61178777,879.05,877.13,0.1977992]
[1757304114534,0.61178777,879.04,877.13,0.1977992]
[1757304114732,0.61178777,879.03,877.13,0.1977992]
[1757304114929,0.61178777,879.02,877.13,0.1977992]
[1757304115229,0.61178777,879.01,877.13,0.1977992]
[1757304115431,0.61178777,879.0,877.13,0.1977992]
[1757304115732,0.61178777,878.99,877.13,0.1977992]